[Event "*** Titled Tuesday 3|2 Blitz"]
[Site "Chess.com"]
[Date "2015.06.02"]
[Round "5"]
[White "RitvarsReimanis"]
[Black "Imre91"]
[Result "0-1"]
[WhiteElo "2350"]
[BlackElo "2555"]
[TimeControl "180+2"]
[EndTime "11:57:44 PDT"]
[Termination "Imre91 won by resignation"]

1. d4 {[%clk 0:03:01.9]} 1... d5 {[%clk 0:03:00.6]} 2. c4 {[%clk 0:03:02]} 2...
c6 {[%clk 0:02:55.8]} 3. e3 {[%clk 0:03:00.9]} 3... Nf6 {[%clk 0:02:56.1]} 4. f4
{[%clk 0:03:01.3]} 4... g6 {[%clk 0:02:56.7]} 5. Nf3 {[%clk 0:03:02.7]} 5... Bg7
{[%clk 0:02:58.3]} 6. Nc3 {[%clk 0:03:04.3]} 6... O-O {[%clk 0:02:59.8]} 7. Bd3
{[%clk 0:03:05.3]} 7... c5 {[%clk 0:02:57.9]} 8. O-O {[%clk 0:03:01.2]} 8...
cxd4 {[%clk 0:02:58.7]} 9. Nxd4 {[%clk 0:02:58.5]} 9... Nc6 {[%clk 0:02:56.8]}
10. Nxc6 {[%clk 0:02:55.9]} 10... bxc6 {[%clk 0:02:57.3]} 11. Qf3 {[%clk
0:02:53]} 11... Ba6 {[%clk 0:02:53.3]} 12. Rd1 {[%clk 0:02:53.3]} 12... e6
{[%clk 0:02:49.6]} 13. Bf1 {[%clk 0:02:39.8]} 13... Qb6 {[%clk 0:02:46.9]} 14.
cxd5 {[%clk 0:02:29.1]} 14... cxd5 {[%clk 0:02:43]} 15. Bxa6 {[%clk 0:02:26.7]}
15... Qxa6 {[%clk 0:02:44.9]} 16. Rb1 {[%clk 0:02:23.1]} 16... Rfc8 {[%clk
0:02:42.8]} 17. Bd2 {[%clk 0:02:21]} 17... Rc4 {[%clk 0:02:40.5]} 18. Be1 {[%clk
0:02:15.7]} 18... Rac8 {[%clk 0:02:41.5]} 19. h3 {[%clk 0:02:15.2]} 19... Qb6
{[%clk 0:02:41.2]} 20. Kh2 {[%clk 0:02:14]} 20... h5 {[%clk 0:02:39.9]} 21. Qe2
{[%clk 0:02:02.5]} 21... Qb8 {[%clk 0:02:34.8]} 22. Kg1 {[%clk 0:01:58.2]} 22...
Qd6 {[%clk 0:02:21]} 23. Rd3 {[%clk 0:01:53.9]} 23... Qb6 {[%clk 0:02:20]} 24.
Kh2 {[%clk 0:01:50.1]} 24... Qb8 {[%clk 0:02:20.9]} 25. Kg1 {[%clk 0:01:50.9]}
25... Ne4 {[%clk 0:02:21.9]} 26. Nxe4 {[%clk 0:01:43.9]} 26... Rxe4 {[%clk
0:02:23.8]} 27. Rb3 {[%clk 0:01:33.9]} 27... Qxf4 {[%clk 0:02:20.1]} 28. Qa6
{[%clk 0:00:39.1]} 28... Qc7 {[%clk 0:02:19.5]} 29. Bd2 {[%clk 0:00:31.9]} 29...
Rc4 {[%clk 0:02:06.7]} 30. Rb7 {[%clk 0:00:26.9]} 30... Qg3 {[%clk 0:01:54.7]}
31. Rf1 {[%clk 0:00:21.4]} 31... Be5 {[%clk 0:01:50.6]} 32. Rf3 {[%clk
0:00:16.4]} 32... Rc1+ {[%clk 0:01:44.9]} 33. Bxc1 {[%clk 0:00:16.1]} 33...
Rxc1+ {[%clk 0:01:46.8]} 34. Qf1 {[%clk 0:00:12.1]} 34... Qh2+ {[%clk
0:01:45.4]} 35. Kf2 {[%clk 0:00:11.4]} 35... Bg3+ {[%clk 0:01:41.9]} 36. Ke2
{[%clk 0:00:09.8]} 36... Rxf1 {[%clk 0:01:42.7]} 0-1

[Event "*** Titled Tuesday 3|2 Blitz"]
[Site "Chess.com"]
[Date "2015.06.02"]
[Round "5"]
[White "ruifeng"]
[Black "AnastasiaProtopopova"]
[Result "1-0"]
[WhiteElo "2069"]
[BlackElo "1838"]
[TimeControl "180+2"]
[EndTime "11:57:48 PDT"]
[Termination "ruifeng won by resignation"]

1. e4 {[%clk 0:03:01.9]} 1... e5 {[%clk 0:02:53.1]} 2. Nf3 {[%clk 0:03:00.7]}
2... Nc6 {[%clk 0:02:49.7]} 3. Bc4 {[%clk 0:03:01.6]} 3... Nf6 {[%clk
0:02:46.3]} 4. d3 {[%clk 0:02:56.1]} 4... Bc5 {[%clk 0:02:43.4]} 5. O-O {[%clk
0:02:56.8]} 5... O-O {[%clk 0:02:41.9]} 6. c3 {[%clk 0:02:57.7]} 6... d5 {[%clk
0:02:41.6]} 7. exd5 {[%clk 0:02:51.9]} 7... Nxd5 {[%clk 0:02:42.3]} 8. Nbd2
{[%clk 0:02:52.3]} 8... Nb6 {[%clk 0:02:42.4]} 9. Ne4 {[%clk 0:02:42.8]} 9...
Nxc4 {[%clk 0:02:42.6]} 10. Nxc5 {[%clk 0:02:43]} 10... Nd6 {[%clk 0:02:44.1]}
11. Re1 {[%clk 0:02:39.2]} 11... Re8 {[%clk 0:02:38.7]} 12. h3 {[%clk
0:02:38.1]} 12... b6 {[%clk 0:02:36.5]} 13. Ne4 {[%clk 0:02:38.7]} 13... Bb7
{[%clk 0:02:34.5]} 14. Qc2 {[%clk 0:02:32.2]} 14... f5 {[%clk 0:02:20.8]} 15.
Bg5 {[%clk 0:02:15.9]} 15... Qd7 {[%clk 0:02:19.6]} 16. Nxd6 {[%clk 0:02:16.6]}
16... Qxd6 {[%clk 0:02:15.6]} 17. Bh4 {[%clk 0:02:08]} 17... Qg6 {[%clk
0:01:58.9]} 18. d4 {[%clk 0:01:08.3]} 18... Nxd4 {[%clk 0:01:51]} 19. cxd4
{[%clk 0:01:04.1]} 19... Bxf3 {[%clk 0:01:52.3]} 20. Qb3+ {[%clk 0:01:05.1]}
20... Kh8 {[%clk 0:01:38.5]} 21. Qxf3 {[%clk 0:01:05.6]} 21... e4 {[%clk
0:01:37]} 22. Qe3 {[%clk 0:00:58]} 22... Qf7 {[%clk 0:01:22.5]} 23. Bg3 {[%clk
0:00:58.3]} 23... Rad8 {[%clk 0:01:17.2]} 24. b3 {[%clk 0:00:58.7]} 24... Qd7
{[%clk 0:01:10.4]} 25. Rac1 {[%clk 0:00:45.8]} 25... Rc8 {[%clk 0:01:05.9]} 26.
Rc4 {[%clk 0:00:43.5]} 26... Qf7 {[%clk 0:00:59.1]} 27. Rec1 {[%clk 0:00:43.8]}
27... Re7 {[%clk 0:00:55.2]} 28. Rc6 {[%clk 0:00:44.6]} 28... Rf8 {[%clk
0:00:51.2]} 29. Bf4 {[%clk 0:00:42.5]} 29... h6 {[%clk 0:00:47.6]} 30. Rxc7
{[%clk 0:00:41.5]} 30... Rxc7 {[%clk 0:00:41]} 31. Rxc7 {[%clk 0:00:42]} 31...
Qd5 {[%clk 0:00:40.3]} 32. Bxh6 {[%clk 0:00:40.5]} 1-0

[Event "*** Titled Tuesday 3|2 Blitz"]
[Site "Chess.com"]
[Date "2015.06.02"]
[Round "5"]
[White "MITerryble"]
[Black "grandmastergauri"]
[Result "1-0"]
[WhiteElo "2527"]
[BlackElo "2288"]
[TimeControl "180+2"]
[EndTime "11:57:49 PDT"]
[Termination "MITerryble won by resignation"]

1. d4 {[%clk 0:03:01.9]} 1... Nf6 {[%clk 0:02:59.6]} 2. Nf3 {[%clk 0:03:02.5]}
2... e6 {[%clk 0:02:58.6]} 3. c4 {[%clk 0:03:03.1]} 3... Bb4+ {[%clk 0:02:59.1]}
4. Bd2 {[%clk 0:03:03.6]} 4... Qe7 {[%clk 0:02:59.9]} 5. g3 {[%clk 0:03:01.3]}
5... Bxd2+ {[%clk 0:02:57.6]} 6. Qxd2 {[%clk 0:03:01.8]} 6... d6 {[%clk
0:02:56.9]} 7. Nc3 {[%clk 0:03:02.1]} 7... b6 {[%clk 0:02:52.8]} 8. Bg2 {[%clk
0:03:02.8]} 8... Bb7 {[%clk 0:02:53.8]} 9. O-O {[%clk 0:03:01.7]} 9... Nbd7
{[%clk 0:02:50.3]} 10. Qc2 {[%clk 0:03:02.6]} 10... O-O {[%clk 0:02:44.4]} 11.
e4 {[%clk 0:03:03.3]} 11... e5 {[%clk 0:02:40.4]} 12. Rfe1 {[%clk 0:03:04.4]}
12... Rfe8 {[%clk 0:02:38.4]} 13. Nd5 {[%clk 0:03:01.7]} 13... Nxd5 {[%clk
0:02:29.5]} 14. cxd5 {[%clk 0:03:01.3]} 14... Rac8 {[%clk 0:02:24.9]} 15. Rad1
{[%clk 0:02:51.3]} 15... a5 {[%clk 0:02:24.5]} 16. dxe5 {[%clk 0:02:46.9]} 16...
dxe5 {[%clk 0:02:20.9]} 17. Bh3 {[%clk 0:02:46.4]} 17... Qd6 {[%clk 0:01:57.9]}
18. Nd2 {[%clk 0:01:28.7]} 18... Rcd8 {[%clk 0:01:51.6]} 19. Nc4 {[%clk
0:01:19.1]} 19... Qh6 {[%clk 0:01:49.1]} 20. Bxd7 {[%clk 0:01:15.8]} 20... Rxd7
{[%clk 0:01:51]} 21. Qc3 {[%clk 0:01:13.8]} 21... Qf6 {[%clk 0:01:46.1]} 22. Rc1
{[%clk 0:01:06.2]} 22... h5 {[%clk 0:01:42.3]} 23. h4 {[%clk 0:00:56.4]} 23...
Ba6 {[%clk 0:01:27.2]} 24. Ne3 {[%clk 0:00:51.4]} 24... Qf3 {[%clk 0:01:21.6]}
25. Nf5 {[%clk 0:00:52.4]} 25... Qg4 {[%clk 0:01:09.4]} 26. f3 {[%clk
0:00:48.4]} 26... Qh3 {[%clk 0:01:09.8]} 27. Rc2 {[%clk 0:00:48.7]} 27... g6
{[%clk 0:01:01.1]} 28. Rh2 {[%clk 0:00:47.8]} 28... Qxh2+ {[%clk 0:01:00]} 29.
Kxh2 {[%clk 0:00:49.5]} 29... gxf5 {[%clk 0:01:01.9]} 30. Qc6 {[%clk 0:00:48.5]}
30... Rde7 {[%clk 0:00:40.4]} 31. exf5 {[%clk 0:00:45.9]} 31... Bc8 {[%clk
0:00:34.7]} 32. Qf6 {[%clk 0:00:44.1]} 32... Rd7 {[%clk 0:00:29.2]} 33. Qg5+
{[%clk 0:00:43.3]} 33... Kf8 {[%clk 0:00:29.3]} 34. f6 {[%clk 0:00:44.4]} 1-0

[Event "*** Titled Tuesday 3|2 Blitz"]
[Site "Chess.com"]
[Date "2015.06.02"]
[Round "5"]
[White "pKiLz5Rn9b"]
[Black "MinhGTrAn"]
[Result "0-1"]
[WhiteElo "2323"]
[BlackElo "2570"]
[TimeControl "180+2"]
[EndTime "11:58:08 PDT"]
[Termination "MinhGTrAn won by resignation"]

1. e4 {[%clk 0:03:01.9]} 1... d6 {[%clk 0:03:01.2]} 2. d4 {[%clk 0:03:02.9]}
2... Nf6 {[%clk 0:03:02.8]} 3. Nc3 {[%clk 0:03:04]} 3... e5 {[%clk 0:03:03.9]}
4. Nf3 {[%clk 0:03:05]} 4... Nbd7 {[%clk 0:03:04.6]} 5. Be2 {[%clk 0:03:05.4]}
5... Be7 {[%clk 0:03:06]} 6. O-O {[%clk 0:03:06]} 6... O-O {[%clk 0:03:07.6]} 7.
h3 {[%clk 0:03:07.1]} 7... c6 {[%clk 0:03:08.5]} 8. a4 {[%clk 0:03:07.3]} 8...
b6 {[%clk 0:03:06.9]} 9. Be3 {[%clk 0:03:02.1]} 9... Bb7 {[%clk 0:03:07]} 10.
Re1 {[%clk 0:03:03.1]} 10... a6 {[%clk 0:03:07.9]} 11. b4 {[%clk 0:02:48]} 11...
b5 {[%clk 0:02:30.9]} 12. Qd2 {[%clk 0:02:35.5]} 12... Re8 {[%clk 0:02:30]} 13.
Red1 {[%clk 0:02:31.8]} 13... Bf8 {[%clk 0:02:26.3]} 14. d5 {[%clk 0:02:12.4]}
14... cxd5 {[%clk 0:02:21.8]} 15. exd5 {[%clk 0:02:13.3]} 15... bxa4 {[%clk
0:02:17.5]} 16. Rxa4 {[%clk 0:02:03.2]} 16... Nb6 {[%clk 0:02:13.7]} 17. Ra5
{[%clk 0:01:57.8]} 17... Rc8 {[%clk 0:02:14.6]} 18. Bxb6 {[%clk 0:01:21.5]}
18... Qxb6 {[%clk 0:02:15.4]} 19. Na4 {[%clk 0:01:22.7]} 19... Qc7 {[%clk
0:01:24.6]} 20. c4 {[%clk 0:01:20.2]} 20... g6 {[%clk 0:01:25.1]} 21. Rc1 {[%clk
0:00:57.5]} 21... e4 {[%clk 0:01:24.7]} 22. Nh2 {[%clk 0:00:46.7]} 22... Re5
{[%clk 0:00:55.1]} 23. Ng4 {[%clk 0:00:43.2]} 23... Nxg4 {[%clk 0:00:53.6]} 24.
Bxg4 {[%clk 0:00:44.8]} 24... Rce8 {[%clk 0:00:53.3]} 25. b5 {[%clk 0:00:24]}
25... e3 {[%clk 0:00:49.5]} 26. fxe3 {[%clk 0:00:25]} 26... Bh6 {[%clk
0:00:51.1]} 27. bxa6 {[%clk 0:00:16]} 27... Bxe3+ {[%clk 0:00:49.7]} 28. Qxe3
{[%clk 0:00:17.4]} 28... Rxe3 {[%clk 0:00:51.4]} 29. axb7 {[%clk 0:00:17.1]}
29... Qxa5 {[%clk 0:00:50.2]} 30. Bc8 {[%clk 0:00:18.3]} 30... Re1+ {[%clk
0:00:36]} 31. Rxe1 {[%clk 0:00:18.9]} 31... Qxe1+ {[%clk 0:00:37.9]} 32. Kh2
{[%clk 0:00:20]} 32... Qe5+ {[%clk 0:00:39.5]} 0-1

[Event "*** Titled Tuesday 3|2 Blitz"]
[Site "Chess.com"]
[Date "2015.06.02"]
[Round "5"]
[White "Hikaru"]
[Black "Cryptochess"]
[Result "1-0"]
[WhiteElo "2806"]
[BlackElo "2374"]
[TimeControl "180+2"]
[EndTime "11:58:17 PDT"]
[Termination "Hikaru won by resignation"]

1. e4 {[%clk 0:03:01.9]} 1... d6 {[%clk 0:02:58.9]} 2. d4 {[%clk 0:03:02.5]}
2... Nf6 {[%clk 0:03:00]} 3. Nc3 {[%clk 0:03:03.8]} 3... g6 {[%clk 0:03:01.5]}
4. f4 {[%clk 0:03:03.3]} 4... Bg7 {[%clk 0:03:02.4]} 5. Nf3 {[%clk 0:03:03.8]}
5... c5 {[%clk 0:03:03.9]} 6. Bb5+ {[%clk 0:03:03.7]} 6... Bd7 {[%clk
0:03:04.8]} 7. e5 {[%clk 0:02:57.6]} 7... Ng4 {[%clk 0:03:05.9]} 8. e6 {[%clk
0:02:58.7]} 8... fxe6 {[%clk 0:03:07.4]} 9. Ng5 {[%clk 0:02:58.8]} 9... Bxb5
{[%clk 0:03:07]} 10. Nxe6 {[%clk 0:02:59.9]} 10... Bxd4 {[%clk 0:03:08.2]} 11.
Nxb5 {[%clk 0:03:01.3]} 11... Qa5+ {[%clk 0:03:06.2]} 12. Qd2 {[%clk 0:03:02.6]}
12... Bf2+ {[%clk 0:03:04.9]} 13. Kd1 {[%clk 0:03:03.7]} 13... Ne3+ {[%clk
0:03:04.7]} 14. Ke2 {[%clk 0:03:04.8]} 14... Qxb5+ {[%clk 0:03:05.8]} 15. Kxf2
{[%clk 0:03:06.4]} 15... Ng4+ {[%clk 0:03:04.8]} 16. Kg3 {[%clk 0:03:07.6]}
16... Na6 {[%clk 0:03:04.4]} 17. Re1 {[%clk 0:03:08.1]} 17... Qd7 {[%clk
0:02:33.2]} 18. b3 {[%clk 0:03:03.7]} 18... h5 {[%clk 0:01:42.3]} 19. Bb2 {[%clk
0:03:03.2]} 19... Rg8 {[%clk 0:01:41.5]} 20. Re2 {[%clk 0:03:02.3]} 20... Nc7
{[%clk 0:01:35.3]} 21. Rae1 {[%clk 0:03:00.2]} 21... Nxe6 {[%clk 0:01:29.2]} 22.
Rxe6 {[%clk 0:03:02.1]} 22... O-O-O {[%clk 0:01:29.3]} 23. Rxe7 {[%clk
0:03:03.1]} 23... h4+ {[%clk 0:01:20.2]} 24. Kxh4 {[%clk 0:02:16.8]} 24... Qf5
{[%clk 0:00:51.5]} 25. h3 {[%clk 0:02:16.7]} 25... g5+ {[%clk 0:00:26.6]} 26.
fxg5 {[%clk 0:02:16.6]} 26... Ne5 {[%clk 0:00:12.3]} 27. Bxe5 {[%clk 0:01:35.2]}
27... dxe5 {[%clk 0:00:13.5]} 28. R1xe5 {[%clk 0:01:37.1]} 28... Qg6 {[%clk
0:00:05.4]} 29. Rxc5+ {[%clk 0:01:34]} 29... Kb8 {[%clk 0:00:06.4]} 30. Qf4+
{[%clk 0:01:34.5]} 30... Ka8 {[%clk 0:00:07.8]} 31. Kg3 {[%clk 0:01:33.3]} 31...
Qb6 {[%clk 0:00:05.2]} 32. Rec7 {[%clk 0:01:30.5]} 32... Qa6 {[%clk 0:00:03.5]}
33. Kh2 {[%clk 0:01:26.4]} 33... Qe2 {[%clk 0:00:03.8]} 34. Qg4 {[%clk
0:01:21.9]} 34... Qe8 {[%clk 0:00:03.4]} 35. Qf3 {[%clk 0:01:19.7]} 35... Rb8
{[%clk 0:00:03.6]} 36. a4 {[%clk 0:01:20.4]} 36... a6 {[%clk 0:00:04.1]} 37. h4
{[%clk 0:01:19.7]} 37... Qd8 {[%clk 0:00:05.1]} 38. Qd5 {[%clk 0:01:18.4]} 38...
Qf8 {[%clk 0:00:04.3]} 39. Rf7 {[%clk 0:01:17.2]} 39... Qe8 {[%clk 0:00:04]} 40.
Rf6 {[%clk 0:01:18.4]} 40... Ka7 {[%clk 0:00:04.5]} 41. Qd4 {[%clk 0:01:19.6]}
41... Ka8 {[%clk 0:00:04.2]} 42. Rc7 {[%clk 0:01:20.4]} 42... Rh8 {[%clk
0:00:03.8]} 43. Rxa6+ {[%clk 0:01:20.6]} 1-0

[Event "*** Titled Tuesday 3|2 Blitz"]
[Site "Chess.com"]
[Date "2015.06.02"]
[Round "5"]
[White "Tal-Baronfew"]
[Black "Cruel_Yaro"]
[Result "0-1"]
[WhiteElo "2530"]
[BlackElo "2562"]
[TimeControl "180+2"]
[EndTime "11:58:30 PDT"]
[Termination "Cruel_Yaro won on time"]

1. d4 {[%clk 0:03:01.9]} 1... Nf6 {[%clk 0:03:00.1]} 2. c4 {[%clk 0:03:02.1]}
2... c5 {[%clk 0:03:01.1]} 3. d5 {[%clk 0:03:02.4]} 3... e6 {[%clk 0:03:02.1]}
4. Nc3 {[%clk 0:03:01.5]} 4... exd5 {[%clk 0:03:03.3]} 5. cxd5 {[%clk
0:03:03.1]} 5... d6 {[%clk 0:03:04.6]} 6. Nf3 {[%clk 0:03:04.2]} 6... g6 {[%clk
0:03:05.6]} 7. Bf4 {[%clk 0:03:04.2]} 7... a6 {[%clk 0:03:06.8]} 8. a4 {[%clk
0:03:04.3]} 8... Bg7 {[%clk 0:03:08]} 9. h3 {[%clk 0:03:05.4]} 9... O-O {[%clk
0:03:09]} 10. e3 {[%clk 0:03:06.8]} 10... Bf5 {[%clk 0:03:09.5]} 11. Nd2 {[%clk
0:02:54.7]} 11... Re8 {[%clk 0:03:10.5]} 12. Be2 {[%clk 0:02:53.1]} 12... Ne4
{[%clk 0:03:11.4]} 13. Ndxe4 {[%clk 0:02:38.4]} 13... Bxe4 {[%clk 0:03:12.4]}
14. O-O {[%clk 0:02:40.2]} 14... g5 {[%clk 0:03:13.7]} 15. Bh2 {[%clk
0:02:39.8]} 15... Bg6 {[%clk 0:03:14.8]} 16. f4 {[%clk 0:02:33.4]} 16... gxf4
{[%clk 0:03:03.4]} 17. exf4 {[%clk 0:02:32.2]} 17... f5 {[%clk 0:02:59.8]} 18.
Kh1 {[%clk 0:02:19.8]} 18... Nd7 {[%clk 0:03:00.3]} 19. Bd3 {[%clk 0:02:10.2]}
19... Nf6 {[%clk 0:02:33.1]} 20. Qc2 {[%clk 0:02:11]} 20... Qd7 {[%clk
0:02:34.4]} 21. a5 {[%clk 0:02:11.8]} 21... Ne4 {[%clk 0:02:28]} 22. Rae1 {[%clk
0:02:09.4]} 22... Nxc3 {[%clk 0:02:04.4]} 23. bxc3 {[%clk 0:02:10.9]} 23... Rxe1
{[%clk 0:02:05]} 24. Rxe1 {[%clk 0:02:11.4]} 24... Re8 {[%clk 0:02:06.2]} 25.
Rxe8+ {[%clk 0:02:09.2]} 25... Qxe8 {[%clk 0:02:06.5]} 26. Bg1 {[%clk
0:01:59.9]} 26... Qe1 {[%clk 0:01:52.1]} 27. Bxf5 {[%clk 0:01:31.3]} 27... Bf7
{[%clk 0:01:08.8]} 28. Bxh7+ {[%clk 0:01:22.5]} 28... Kh8 {[%clk 0:00:48.1]} 29.
Bg6 {[%clk 0:01:01.8]} 29... Bxc3 {[%clk 0:00:37.8]} 30. Kh2 {[%clk 0:00:49.3]}
30... Bd2 {[%clk 0:00:27.3]} 31. Bxf7 {[%clk 0:00:41.9]} 31... Bxf4+ {[%clk
0:00:28]} 0-1

[Event "*** Titled Tuesday 3|2 Blitz"]
[Site "Chess.com"]
[Date "2015.06.02"]
[Round "5"]
[White "Danirod"]
[Black "patzerplay"]
[Result "1-0"]
[WhiteElo "2396"]
[BlackElo "2169"]
[TimeControl "180+2"]
[EndTime "11:58:33 PDT"]
[Termination "Danirod won by resignation"]

1. e4 {[%clk 0:02:55.6]} 1... c5 {[%clk 0:02:57]} 2. Nf3 {[%clk 0:02:56.6]} 2...
d6 {[%clk 0:02:57.8]} 3. Bb5+ {[%clk 0:02:57.6]} 3... Bd7 {[%clk 0:02:58.5]} 4.
Bxd7+ {[%clk 0:02:58.7]} 4... Qxd7 {[%clk 0:03:00.4]} 5. O-O {[%clk 0:02:59.9]}
5... Nc6 {[%clk 0:02:57.3]} 6. c3 {[%clk 0:03:00.9]} 6... Nf6 {[%clk 0:02:58]}
7. d4 {[%clk 0:03:01.9]} 7... cxd4 {[%clk 0:02:59.1]} 8. cxd4 {[%clk 0:03:03.8]}
8... Nxe4 {[%clk 0:02:59.8]} 9. d5 {[%clk 0:03:04.6]} 9... Ne5 {[%clk
0:03:00.4]} 10. Re1 {[%clk 0:03:05.9]} 10... Nf6 {[%clk 0:03:01.1]} 11. Nxe5
{[%clk 0:03:07]} 11... dxe5 {[%clk 0:03:03]} 12. Rxe5 {[%clk 0:03:08.5]} 12...
O-O-O {[%clk 0:03:04.2]} 13. Nc3 {[%clk 0:03:09]} 13... e6 {[%clk 0:03:04.7]}
14. Qd4 {[%clk 0:02:56.8]} 14... Kb8 {[%clk 0:02:33.7]} 15. Bg5 {[%clk 0:02:54]}
15... Bd6 {[%clk 0:02:29.7]} 16. Ree1 {[%clk 0:02:37.8]} 16... e5 {[%clk
0:01:18.9]} 17. Qd3 {[%clk 0:02:28]} 17... Qg4 {[%clk 0:00:54.2]} 18. Be3 {[%clk
0:02:22.5]} 18... Bc7 {[%clk 0:00:39.8]} 19. h3 {[%clk 0:02:21.4]} 19... Qg6
{[%clk 0:00:39.8]} 20. Qc4 {[%clk 0:02:17.2]} 20... Nh5 {[%clk 0:00:33]} 21.
Bxa7+ {[%clk 0:02:07.9]} 21... Kxa7 {[%clk 0:00:19.6]} 22. Nb5+ {[%clk
0:02:08.9]} 22... Ka8 {[%clk 0:00:19.1]} 23. Nxc7+ {[%clk 0:02:03.1]} 23... Kb8
{[%clk 0:00:20.4]} 24. Nb5 {[%clk 0:02:01.9]} 24... Qb6 {[%clk 0:00:17.3]} 25.
a4 {[%clk 0:01:55]} 25... Rc8 {[%clk 0:00:18]} 26. Qg4 {[%clk 0:01:55.7]} 26...
Nf6 {[%clk 0:00:17.7]} 27. Qf5 {[%clk 0:01:48.2]} 27... e4 {[%clk 0:00:17.4]}
28. Rac1 {[%clk 0:01:40.9]} 28... Rxc1 {[%clk 0:00:05.9]} 29. Rxc1 {[%clk
0:01:41.8]} 29... Rd8 {[%clk 0:00:07.8]} 30. d6 {[%clk 0:01:30.3]} 30... e3
{[%clk 0:00:08.7]} 31. Re1 {[%clk 0:01:25.4]} 31... Re8 {[%clk 0:00:05.5]} 32.
fxe3 {[%clk 0:01:18.7]} 32... Rxe3 {[%clk 0:00:05.8]} 33. Rxe3 {[%clk
0:01:19.6]} 33... Qxe3+ {[%clk 0:00:07.7]} 34. Qf2 {[%clk 0:01:18.5]} 34... Qc1+
{[%clk 0:00:06.2]} 35. Kh2 {[%clk 0:01:19.3]} 35... Qc6 {[%clk 0:00:07.2]} 36.
Qa7+ {[%clk 0:01:18.7]} 36... Kc8 {[%clk 0:00:08.6]} 37. Qd4 {[%clk 0:01:19.5]}
37... Kd7 {[%clk 0:00:09.8]} 38. Qe5 {[%clk 0:01:18.7]} 38... Qe4 {[%clk
0:00:07.2]} 39. Qc3 {[%clk 0:01:09.2]} 39... Qf4+ {[%clk 0:00:07.4]} 40. Qg3
{[%clk 0:01:08.9]} 40... Qxg3+ {[%clk 0:00:06.7]} 41. Kxg3 {[%clk 0:01:10.5]}
41... Ne4+ {[%clk 0:00:08.6]} 42. Kf4 {[%clk 0:01:12]} 42... Nxd6 {[%clk
0:00:10.1]} 43. Nd4 {[%clk 0:01:07.6]} 43... Nc4 {[%clk 0:00:10.8]} 44. b3
{[%clk 0:01:07.5]} 44... h6 {[%clk 0:00:11.4]} 45. bxc4 {[%clk 0:01:08.2]} 1-0

[Event "*** Titled Tuesday 3|2 Blitz"]
[Site "Chess.com"]
[Date "2015.06.02"]
[Round "5"]
[White "Lupul_Cenusiu"]
[Black "oggy1984"]
[Result "0-1"]
[WhiteElo "2435"]
[BlackElo "2330"]
[TimeControl "180+2"]
[EndTime "11:58:55 PDT"]
[Termination "oggy1984 won by resignation"]

1. d4 {[%clk 0:03:01.9]} 1... Nf6 {[%clk 0:02:52]} 2. Bg5 {[%clk 0:03:02]} 2...
d5 {[%clk 0:02:45.9]} 3. Nd2 {[%clk 0:03:02.2]} 3... Nbd7 {[%clk 0:02:39.3]} 4.
e3 {[%clk 0:03:02.8]} 4... e5 {[%clk 0:02:35.2]} 5. dxe5 {[%clk 0:03:02.2]} 5...
Nxe5 {[%clk 0:02:33.3]} 6. Ngf3 {[%clk 0:03:02.5]} 6... Bd6 {[%clk 0:02:30]} 7.
Be2 {[%clk 0:03:02.1]} 7... h6 {[%clk 0:02:26.6]} 8. Bh4 {[%clk 0:03:01.3]} 8...
Nxf3+ {[%clk 0:02:24.2]} 9. Nxf3 {[%clk 0:03:01.1]} 9... O-O {[%clk 0:02:21.5]}
10. O-O {[%clk 0:03:01.5]} 10... Be6 {[%clk 0:02:14]} 11. Nd4 {[%clk 0:02:49.1]}
11... Bd7 {[%clk 0:02:11.7]} 12. Bg3 {[%clk 0:02:50.2]} 12... Bxg3 {[%clk
0:02:07.1]} 13. hxg3 {[%clk 0:02:51.3]} 13... c5 {[%clk 0:02:05.8]} 14. Nb3
{[%clk 0:02:50.3]} 14... b6 {[%clk 0:02:02.9]} 15. c4 {[%clk 0:02:50.9]} 15...
dxc4 {[%clk 0:01:59.5]} 16. Bxc4 {[%clk 0:02:51.9]} 16... Qe7 {[%clk 0:01:58.4]}
17. Qc2 {[%clk 0:02:50]} 17... Rad8 {[%clk 0:01:54]} 18. a4 {[%clk 0:02:45.7]}
18... Bc6 {[%clk 0:01:45.2]} 19. Rfe1 {[%clk 0:02:27.2]} 19... Ne4 {[%clk
0:01:38.5]} 20. Bb5 {[%clk 0:02:25.2]} 20... Bxb5 {[%clk 0:01:29.6]} 21. axb5
{[%clk 0:02:25.7]} 21... Rfe8 {[%clk 0:01:29.5]} 22. Ra4 {[%clk 0:02:19.3]}
22... Nd6 {[%clk 0:01:25.7]} 23. Qe2 {[%clk 0:02:17.4]} 23... Qd7 {[%clk
0:01:21]} 24. Nd2 {[%clk 0:02:14.4]} 24... Nxb5 {[%clk 0:01:16.8]} 25. Raa1
{[%clk 0:02:14.8]} 25... Qxd2 {[%clk 0:01:04.2]} 26. Qxb5 {[%clk 0:02:14.8]}
26... Re7 {[%clk 0:01:03.7]} 27. b3 {[%clk 0:02:13.8]} 27... Rd6 {[%clk
0:00:59.7]} 28. Rf1 {[%clk 0:02:10.2]} 28... Red7 {[%clk 0:00:56.6]} 29. Ra4
{[%clk 0:02:03.6]} 29... Qc2 {[%clk 0:00:52]} 30. Rc4 {[%clk 0:02:00.3]} 30...
Qb2 {[%clk 0:00:47.5]} 31. Rf4 {[%clk 0:01:57.8]} 31... Rd3 {[%clk 0:00:43.5]}
32. b4 {[%clk 0:01:57.8]} 32... g5 {[%clk 0:00:39.8]} 33. Re4 {[%clk 0:01:56.6]}
33... Rd1 {[%clk 0:00:35.9]} 34. g4 {[%clk 0:01:49.8]} 34... cxb4 {[%clk
0:00:24.1]} 35. Re8+ {[%clk 0:01:19.4]} 35... Kg7 {[%clk 0:00:18.3]} 36. Rxd1
{[%clk 0:01:19.5]} 36... Rxd1+ {[%clk 0:00:17.3]} 37. Kh2 {[%clk 0:01:20.4]}
37... b3 {[%clk 0:00:13.4]} 38. Qf5 {[%clk 0:01:16]} 38... Qa1 {[%clk
0:00:10.5]} 39. Re7 {[%clk 0:01:14.7]} 39... Qf6 {[%clk 0:00:10.7]} 40. Qe4
{[%clk 0:01:08]} 40... b2 {[%clk 0:00:11]} 41. Re8 {[%clk 0:01:07]} 41... b1=Q
{[%clk 0:00:10.6]} 42. Kg3 {[%clk 0:01:08.5]} 42... Qxe4 {[%clk 0:00:11]} 43.
Rxe4 {[%clk 0:01:07.3]} 43... Rd2 {[%clk 0:00:11.8]} 44. f3 {[%clk 0:01:07.9]}
44... Qb2 {[%clk 0:00:12.4]} 45. Kh3 {[%clk 0:01:04.2]} 45... Rxg2 {[%clk
0:00:13.2]} 0-1